bitfinex/quotes_ETHUSD_20250525
["timestamp","ask_amount","ask_price","bid_price","bid_amount"]
[1748162010352,0.1,2480.6,2480.5,4.653]
[1748162010566,4.122,2480.6,2480.5,4.653]
[1748162011360,0.7887,2480.5,2480.4,8.69]
[1748162011656,0.49107,2480.5,2480.4,13.34]
[1748162012367,0.1,2480.6,2480.4,13.34]
[1748162014031,0.1,2480.8,2480.5,0.4015]
[1748162014434,0.12,2480.9,2480.7,0.4015]
[1748162015220,0.12,2480.9,2480.8,4.649]
[1748162016729,0.12,2480.9,2480.5,8.4015]
[1748162016930,0.12,2480.9,2480.6,4.649]
[1748162018324,0.12,2480.9,2480.7,4.649]
[1748162018720,0.1,2480.8,2480.4,8.69]
[1748162019043,0.1,2480.8,2480.5,4.649]
[1748162019243,0.1,2480.8,2480.4,8.69]
[1748162019448,0.7799,2480.7,2480.5,4.649]
[1748162022858,0.1,2480.8,2480.5,4.649]
[1748162023355,0.1,2480.8,2480.6,8.4015]
[1748162024767,0.22,2480.9,2480.6,8.4015]
[1748162027535,0.22,2480.9,2480.7,4.649]
[1748162036388,0.22,2480.9,2480.7,5.15405]
[1748162037299,0.22,2480.9,2480.8,8.4015]
[1748162039819,0.12,2480.9,2480.5,0.4015]
[1748162039951,0.12,2480.9,2480.6,4.558]
[1748162047251,0.12,2480.9,2480.7,8.0]
[1748162047593,0.12,2480.9,2480.8,0.4015]
[1748162048096,0.12,2480.9,2480.8,0.88275277]
[1748162050111,0.12,2480.9,2480.8,1.88834812]
[1748162050314,0.12,2480.9,2480.8,0.4015]
[1748162050499,0.12,2480.9,2480.8,4.9595]
[1748162050693,0.12,2480.9,2480.8,5.50349703]
[1748162051092,0.12,2480.9,2480.8,13.50349703]
[1748162051792,0.12,2480.9,2480.8,8.94549703]
[1748162052303,0.12,2480.9,2480.8,12.9595]
[1748162056726,0.12,2480.9,2480.8,8.0]
[1748162056892,0.12,2480.9,2480.8,12.558]
[1748162057479,0.12,2480.9,2480.8,21.242]
[1748162063230,4.8961,2480.9,2480.8,8.684]
[1748162063429,1.36571,2480.9,2480.8,13.242]
[1748162063600,4.8961,2480.9,2480.8,13.242]
[1748162065839,0.8761,2480.9,2480.8,13.242]
[1748162067934,0.12,2480.9,2480.8,13.242]
[1748162070338,0.12,2480.9,2480.8,13.229]
[1748162072142,0.12,2480.9,2480.8,8.684]
[1748162072303,0.12,2480.9,2480.8,13.229]
[1748162072729,0.12,2480.9,2480.8,8.684]
[1748162073072,0.12,2480.9,2480.8,13.229]
[1748162078973,0.9272,2480.9,2480.8,13.229]
[1748162080272,0.12,2480.9,2480.8,13.229]
[1748162110056,0.8946,2480.9,2480.8,13.229]
[1748162111764,0.8946,2480.9,2480.8,13.223]
[1748162112274,0.8946,2480.9,2480.8,8.684]
[1748162112483,5.0156,2480.9,2480.8,13.223]
[1748162112650,6.92157328,2480.9,2480.8,13.223]
[1748162112982,7.94910803,2480.9,2480.8,13.223]
[1748162113989,7.47157328,2480.9,2480.8,13.223]
[1748162114675,8.109595,2480.9,2480.8,13.223]
[1748162115258,8.109595,2480.9,2480.8,8.684]
[1748162115469,11.85334082,2480.9,2480.8,13.224]
[1748162115882,22.10334082,2480.9,2480.8,13.224]
[1748162118256,21.4653191,2480.9,2480.8,13.224]
[1748162119867,13.70057328,2480.9,2480.8,13.224]
[1748162120192,10.47,2480.9,2480.8,13.224]
[1748162120593,14.96859402,2480.9,2480.8,13.224]
[1748162120992,4.71959402,2480.9,2480.8,13.224]
[1748162121369,4.242,2480.9,2480.8,13.224]
[1748162122305,0.12,2480.9,2480.8,17.36924582]
[1748162124069,0.12,2480.9,2480.8,25.36924582]
[1748162124806,0.12,2480.9,2480.8,25.91924582]
[1748162124978,0.02,2481.9,2481.6,0.4015]
[1748162125180,0.02,2481.9,2481.7,4.54]
[1748162126674,0.02,2481.9,2481.8,12.14524582]
[1748162126934,0.02,2481.9,2481.8,12.69524582]
[1748162127240,0.47759402,2482.6,2482.5,12.14524582]
[1748162127379,0.47759402,2482.6,2482.5,25.37024582]
[1748162128216,0.90763237,2482.9,2482.6,0.55]
[1748162128397,0.27084034,2482.9,2482.6,0.55]
[1748162128589,0.27084034,2482.9,2482.6,4.29374582]
[1748162128790,0.27084034,2482.9,2482.8,7.48749164]
[1748162129022,0.27084034,2482.9,2482.8,3.74374582]
[1748162129196,0.27084034,2482.9,2482.8,16.03949164]
[1748162129395,0.22031831,2483.2,2482.8,16.03949164]
[1748162129396,2.23724135,2483.2,2482.9,0.55]
[1748162129594,2.23724135,2483.2,2483.1,3.74374582]
[1748162129809,2.23724135,2483.2,2483.1,7.94789316]
[1748162129976,2.03724135,2483.2,2483.1,11.96789316]
[1748162130181,2.03724135,2483.2,2483.1,0.97645447]
[1748162130495,2.03724135,2483.2,2482.9,7.46878404]
[1748162131019,2.03724135,2483.2,2482.7,8.0]
[1748162131889,2.03724135,2483.2,2482.3,11.48878404]
[1748162132215,2.03724135,2483.2,2482.4,8.0]
[1748162133383,0.02031831,2483.2,2482.4,8.0]
[1748162134008,0.53271578,2483.2,2482.4,8.0]
[1748162134686,0.02031831,2483.2,2482.4,8.0]
[1748162135404,0.02031831,2483.2,2482.6,7.46878404]
[1748162136311,0.02031831,2483.2,2482.2,0.39252621]
[1748162136533,0.02031831,2483.2,2482.3,7.46878404]
[1748162136997,0.02031831,2483.2,2482.1,4.018]
[1748162137201,0.02031831,2483.2,2482.6,7.46878404]
[1748162137603,0.02031831,2483.2,2482.7,13.21]
[1748162138125,0.02031831,2483.2,2482.8,8.0]
[1748162140942,0.02031831,2483.2,2483.0,8.0]
[1748162143250,0.83921831,2483.2,2483.1,4.53]
[1748162144152,0.93921831,2483.2,2482.7,8.68]
[1748162144328,0.93921831,2483.2,2483.1,4.53]
[1748162144664,1.46012578,2483.2,2483.1,4.53]
[1748162145826,0.93921831,2483.2,2483.1,4.53]
[1748162146031,0.12031831,2483.2,2483.1,4.53]
[1748162148345,0.02031831,2483.2,2483.1,4.53]
[1748162153963,0.02031831,2483.2,2483.1,13.208]
[1748162154338,0.02031831,2483.2,2483.1,13.207]
[1748162160570,0.02031831,2483.2,2483.1,8.678]
[1748162160799,0.02031831,2483.2,2483.1,13.206]
[1748162162005,0.82911831,2483.2,2483.1,13.206]
[1748162162582,4.84611831,2483.2,2483.1,13.206]
[1748162162782,5.36095009,2483.2,2483.1,13.206]
[1748162162981,0.8088,2483.0,2482.2,0.48047026]
[1748162163307,0.8088,2482.8,2482.3,4.528]
[1748162163482,0.05035495,2482.7,2482.3,4.528]
[1748162163676,0.8088,2482.6,2482.3,4.528]
[1748162165620,0.8088,2482.6,2482.4,4.529]
[1748162166715,0.8088,2482.6,2481.8,7.46878404]
[1748162166943,0.8088,2482.6,2481.9,5.2758784]
[1748162167611,0.8088,2482.6,2482.0,13.207]
[1748162167766,0.85915625,2482.6,2482.0,8.678]
[1748162167971,0.8088,2482.6,2482.1,4.529]
[1748162168272,0.8122,2482.2,2481.8,8.679]
[1748162168469,0.8122,2482.0,2481.9,4.529]
[1748162168693,2.33525694,2482.0,2481.9,4.529]
[1748162172032,2.43525694,2482.0,2481.9,4.529]
[1748162172414,6.45325694,2482.0,2481.9,4.529]
[1748162177949,6.45425694,2482.0,2481.9,4.529]
[1748162178253,0.9122,2482.0,2481.9,4.529]
[1748162178437,0.8277,2482.2,2481.9,4.529]
[1748162178639,15.1967,2482.5,2481.9,4.529]
[1748162178845,4.019,2482.4,2481.9,4.529]
[1748162179244,4.51367,2482.4,2481.8,8.679]
[1748162179429,4.51367,2482.4,2481.9,4.53]
[1748162181357,4.019,2482.4,2481.9,4.53]
[1748162183678,4.119,2482.4,2481.9,4.53]
[1748162184830,0.1,2482.4,2481.9,4.53]
[1748162185030,4.119,2482.4,2481.9,4.53]
[1748162186430,0.1,2482.4,2481.9,4.53]
[1748162187732,0.1,2482.4,2481.9,11.99878404]
[1748162187942,0.1,2482.7,2482.2,7.46878404]
[1748162188132,0.1,2482.8,2482.5,7.46878404]
[1748162188404,0.1,2483.0,2482.6,4.53]
[1748162189897,0.02031831,2483.2,2482.9,8.0]
[1748162192699,0.02031831,2483.2,2483.1,15.46878404]
[1748162195284,0.02031831,2483.2,2483.1,8.0]
[1748162195459,0.02031831,2483.2,2483.1,12.524]
[1748162197793,0.02031831,2483.2,2483.1,8.0]
[1748162198006,0.02031831,2483.2,2483.1,12.524]
[1748162198873,0.02031831,2483.2,2483.1,8.0]
[1748162199073,0.02031831,2483.2,2483.1,12.524]
[1748162200200,0.02031831,2483.2,2483.1,8.0]
[1748162200523,0.02031831,2483.2,2483.1,12.524]
[1748162206326,0.02031831,2483.2,2483.1,8.0]
[1748162206535,0.02031831,2483.2,2483.1,12.524]
[1748162210727,0.02031831,2483.2,2483.1,21.201]
[1748162211726,0.02031831,2483.2,2483.1,24.93691773]
[1748162212436,0.02031831,2483.2,2483.1,21.201]
[1748162214037,0.02031831,2483.2,2483.1,8.677]
[1748162214218,0.02031831,2483.2,2483.1,13.201]
[1748162217643,0.02031831,2483.2,2483.1,8.677]
[1748162218019,0.02031831,2483.2,2483.1,13.201]
[1748162220607,0.02031831,2483.2,2483.1,8.677]
[1748162221010,0.12031831,2483.2,2483.1,8.677]
[1748162221216,11.74351831,2483.2,2483.1,13.194]
[1748162222155,8.8232,2483.1,2482.3,0.48047026]
[1748162222337,0.55,2482.6,2482.4,4.517]
[1748162222541,5.21473779,2482.5,2481.6,8.0]
[1748162222742,0.52147378,2482.4,2481.7,4.517]
[1748162223663,0.8232,2482.3,2481.7,4.517]
[1748162224030,0.8232,2482.1,2481.8,4.517]
[1748162224230,0.8232,2482.1,2481.9,4.517]
[1748162224563,0.8232,2482.1,2482.0,4.517]
[1748162224564,4.8402,2482.1,2482.0,4.517]
[1748162225598,4.8402,2482.1,2481.1,0.12]
[1748162225733,4.8402,2482.1,2481.2,4.517]
[1748162226465,4.8402,2482.1,2481.3,4.517]
[1748162226648,0.53902,2482.0,2481.3,4.517]
[1748162227420,0.53902,2482.0,2481.4,8.679]
[1748162227621,0.8232,2482.1,2481.6,7.48090766]
[1748162228441,0.8232,2482.1,2481.4,8.679]
[1748162228837,0.8232,2482.1,2481.5,4.518]
[1748162230880,0.1,2482.0,2481.5,4.518]
[1748162232063,0.1,2482.0,2481.6,7.48090766]
[1748162232232,0.1,2482.0,2481.9,7.48090766]
[1748162232664,0.1,2482.5,2481.9,7.48090766]
[1748162232958,0.1,2482.7,2481.9,7.48090766]
[1748162233960,0.1,2482.7,2482.0,4.518]
[1748162234360,0.1,2482.7,2481.9,7.48090766]
[1748162234573,0.1,2482.7,2482.1,4.518]
[1748162235273,0.87325471,2482.6,2482.2,4.518]
[1748162235443,0.97325471,2482.6,2482.3,4.518]
[1748162235642,0.9229,2482.6,2482.3,4.518]
[1748162239566,0.9229,2482.6,2482.4,4.519]
[1748162239740,0.9229,2482.6,2482.5,4.519]
[1748162241681,0.1,2482.6,2482.5,4.519]
[1748162242680,0.1,2482.8,2482.5,4.519]
[1748162242880,0.1,2482.9,2482.6,0.4519]
[1748162243887,0.49923437,2483.2,2482.8,7.48090766]
[1748162244783,0.02031831,2483.2,2482.8,7.48090766]
[1748162245079,0.02031831,2483.2,2482.8,7.87338684]
[1748162245463,0.02031831,2483.2,2483.1,15.48090766]
[1748162245780,0.02031831,2483.2,2483.1,25.15380766]
[1748162245958,0.02031831,2483.2,2483.1,22.1909]
[1748162247471,0.02031831,2483.2,2483.1,17.6729]
[1748162247787,0.02031831,2483.2,2483.1,22.1909]
[1748162248886,0.02031831,2483.2,2483.1,22.1899]
[1748162252056,0.02031831,2483.2,2483.1,22.1829]
[1748162252680,0.02031831,2483.2,2483.1,29.66380766]
[1748162253083,0.22217469,2483.4,2483.2,8.0]
[1748162253398,0.22217469,2483.4,2483.3,0.4519]
[1748162256125,0.22217469,2483.4,2483.3,1.0019]
[1748162256462,0.35927426,2483.8,2483.4,0.55]
[1748162256802,0.35927426,2483.8,2483.7,7.48090766]
[1748162257708,0.35927426,2483.8,2483.7,8.03090766]
[1748162257869,0.35927426,2483.8,2483.7,16.83399843]
[1748162258199,0.61875223,2484.1,2483.8,8.0]
[1748162258399,0.61875223,2484.1,2484.0,15.48090766]
[1748162259106,0.61875223,2484.1,2484.0,19.98990766]
[1748162259493,0.61875223,2484.1,2484.0,4.509]
[1748162259876,0.61875223,2484.1,2483.7,8.28399843]
[1748162260076,0.61875223,2484.1,2483.8,13.14970923]
[1748162261410,0.61875223,2484.1,2483.9,4.508]
[1748162264473,0.61875223,2484.1,2484.0,4.508]
[1748162265500,0.61875223,2484.1,2483.8,0.64070923]
[1748162265711,0.61875223,2484.1,2484.0,8.0]
[1748162267808,0.61875223,2484.1,2483.8,0.64070923]
[1748162267980,0.61875223,2484.1,2484.0,8.0]
[1748162269937,0.9156,2484.6,2484.0,15.46442036]
[1748162269938,0.1,2484.6,2484.0,15.46442036]
[1748162270226,0.1,2484.6,2484.3,3.73221018]
[1748162270433,0.56770817,2484.7,2484.3,3.73221018]
[1748162271288,0.56770817,2484.7,2484.3,4.28221018]
[1748162271492,0.56770817,2484.7,2484.3,4.7104312]
[1748162271731,0.56770817,2484.7,2484.3,7.88916757]
[1748162272057,0.56770817,2484.7,2484.4,12.508]
[1748162272933,0.56770817,2484.7,2484.4,12.90525019]
[1748162273225,0.56770817,2484.7,2484.4,8.39725019]
[1748162273427,0.56770817,2484.7,2484.6,8.0]
[1748162273603,0.56770817,2484.7,2484.6,12.507]
[1748162276094,0.56770817,2484.7,2484.6,8.0]
[1748162276433,0.56770817,2484.7,2484.6,12.507]
[1748162278739,0.56770817,2484.7,2484.6,8.0]
[1748162278938,0.56770817,2484.7,2484.6,12.507]
[1748162279100,0.56770817,2484.7,2484.6,8.0]
[1748162279306,0.56770817,2484.7,2484.6,12.507]
[1748162279825,0.56770817,2484.7,2484.4,0.41088741]
[1748162279987,1.35030817,2484.7,2484.5,4.507]
[1748162280319,1.35030817,2484.7,2484.6,4.507]
[1748162280537,1.5610576,2484.7,2484.0,7.46094655]
[1748162280859,0.7826,2484.6,2484.1,4.5]
[1748162284331,0.7826,2484.6,2484.0,0.39760545]
[1748162284503,0.7826,2484.6,2484.1,4.5]
[1748162286233,0.7826,2484.6,2483.8,7.46094655]
[1748162286234,0.1,2484.5,2483.6,8.0]
[1748162286531,0.7791,2484.4,2483.7,4.501]
[1748162286944,0.7791,2484.4,2483.8,4.501]
[1748162287102,0.7791,2484.4,2483.9,4.501]
[1748162287442,0.7791,2484.4,2484.0,4.501]
[1748162288015,0.7791,2484.4,2483.6,8.0]
[1748162288224,0.7791,2484.4,2483.6,8.407121]
[1748162288738,0.7791,2484.4,2483.7,4.501]
[1748162289735,0.1,2484.3,2483.7,4.501]
[1748162290336,0.1,2484.3,2483.6,8.407121]
[1748162290337,0.8201,2484.2,2483.6,8.407121]
[1748162290639,0.8201,2484.2,2483.8,4.501]
[1748162291845,0.8201,2484.2,2483.9,4.501]
[1748162294659,0.8201,2484.2,2484.0,4.501]
[1748162294937,0.8201,2484.2,2484.1,4.501]
[1748162295140,0.9201,2484.2,2484.1,4.501]
[1748162300094,0.1,2484.2,2484.1,11.9703483]
[1748162301319,0.1,2484.6,2484.1,19.9703483]
[1748162301606,0.1,2484.6,2484.2,8.0]
[1748162302877,1.47040817,2484.7,2484.2,8.0]
[1748162306070,1.47040817,2484.7,2484.1,11.9703483]
[1748162306071,1.47040817,2484.7,2484.1,7.4693483]
[1748162306274,1.47040817,2484.7,2484.3,4.501]
[1748162306590,1.47040817,2484.7,2484.4,4.501]
[1748162306788,1.6931676,2484.7,2484.4,4.501]
[1748162306989,1.6931676,2484.7,2484.5,4.501]
[1748162307314,1.6931676,2484.7,2484.6,4.501]
[1748162309691,1.6931676,2484.7,2484.1,0.40943161]
[1748162309934,1.6931676,2484.7,2484.6,4.501]
[1748162310449,2.06776952,2484.7,2484.6,4.501]
[1748162310895,2.06776952,2484.7,2483.6,8.0]
[1748162310896,0.7867,2484.6,2483.6,8.0]
[1748162311092,0.8867,2484.6,2483.7,4.493]
[1748162311286,0.1,2484.5,2483.8,4.493]
[1748162311484,0.7867,2484.4,2483.8,4.493]
[1748162312976,0.7867,2484.4,2483.5,0.4098331]
[1748162313317,0.7867,2484.4,2483.6,4.494]
[1748162313480,0.7867,2484.2,2483.7,4.494]
[1748162313679,0.1,2484.1,2483.7,4.494]
[1748162315886,0.7949,2484.0,2483.7,4.494]
[1748162316198,0.7949,2484.0,2483.8,4.494]
[1748162316837,0.94522505,2484.0,2483.9,4.494]
[1748162316990,1.40036277,2484.0,2483.9,4.494]
[1748162317320,0.8949,2484.0,2483.1,8.681]
[1748162317620,0.7949,2483.8,2483.2,4.494]
[1748162317829,0.7949,2483.8,2483.3,4.494]
[1748162318529,0.7949,2483.8,2483.4,4.494]
[1748162320035,0.7949,2483.8,2483.1,12.41589371]
[1748162320187,1.37639051,2483.8,2483.5,4.494]
[1748162321437,0.7949,2483.8,2483.5,4.494]
[1748162322088,0.1,2483.7,2483.5,4.494]
[1748162322508,0.1,2483.7,2483.6,4.494]
[1748162322717,0.8949,2483.8,2483.6,4.494]
[1748162324724,0.1,2483.8,2483.7,3.73489371]
[1748162324909,0.1,2483.8,2483.7,4.55778308]
[1748162328129,0.1,2484.1,2483.7,4.55778308]
[1748162328648,0.1,2484.1,2483.9,3.73489371]
[1748162329644,0.1,2484.1,2483.7,0.82288937]
[1748162329645,0.1,2484.1,2483.7,4.55778308]
[1748162329805,0.1,2484.1,2483.7,3.73489371]
[1748162330544,0.1,2484.1,2483.8,4.494]
[1748162332927,0.1,2484.1,2483.9,8.675]
[1748162333963,0.1,2484.2,2483.9,8.675]
[1748162336125,0.1,2484.2,2483.9,12.40989371]
[1748162336326,0.1,2484.2,2484.0,4.494]
[1748162338331,0.7949,2484.3,2484.0,4.494]
[1748162338332,0.1,2484.3,2484.0,4.494]
[1748162338772,0.1,2484.3,2484.1,3.73489371]
[1748162342771,0.1,2484.6,2484.1,3.73489371]
[1748162343770,0.1,2484.6,2484.0,8.0]
[1748162343968,0.7537,2484.5,2484.0,8.0]
[1748162344170,0.7537,2484.5,2484.1,4.485]
[1748162345442,0.7537,2484.5,2484.2,4.485]
[1748162347707,0.7537,2484.5,2483.9,8.675]
[1748162347708,0.1,2484.4,2484.3,4.485]
[1748162347859,0.8799,2484.4,2484.3,4.485]
[1748162348057,2.54287937,2484.4,2484.3,4.485]
[1748162348360,2.91679643,2484.4,2484.3,4.485]
[1748162348893,0.8306,2484.3,2483.9,8.675]
[1748162349196,0.8306,2484.3,2484.0,4.485]
[1748162349395,0.37391706,2484.2,2484.0,4.485]
[1748162349597,0.73434591,2484.2,2484.0,4.485]
[1748162349997,0.37391706,2484.1,2484.0,4.485]
[1748162352868,0.85258347,2484.1,2484.0,4.485]
[1748162354301,1.63168347,2484.1,2484.0,4.485]
[1748162355779,1.25776641,2484.1,2484.0,4.485]
[1748162356010,1.88486514,2484.1,2484.0,4.485]
[1748162356244,1.40619873,2484.1,2484.0,4.485]
[1748162356855,1.88486514,2484.1,2484.0,4.485]
[1748162357484,1.98486514,2484.1,2484.0,4.485]
[1748162357686,2.35904887,2484.1,2484.0,4.485]
[1748162360122,1.88038246,2484.1,2483.9,8.675]
[1748162360331,0.4222713,2484.0,2483.9,8.675]
[1748162360541,5.18924777,2484.0,2483.9,13.16]
[1748162361186,5.66791418,2484.0,2483.9,13.16]
[1748162361640,6.04209791,2484.0,2483.9,13.16]
[1748162362758,2.02609791,2484.0,2483.9,13.16]
[1748162362929,6.04209791,2484.0,2483.9,13.16]
[1748162363647,5.18924777,2484.0,2483.9,13.16]
[1748162367829,1.17324777,2484.0,2483.9,13.16]
[1748162368021,5.18924777,2484.0,2483.9,13.16]
[1748162372124,5.56336283,2484.0,2483.9,13.16]
[1748162372824,1.54736283,2484.0,2483.9,13.16]
[1748162373020,0.95278147,2484.0,2483.9,13.16]
[1748162373725,0.47866641,2484.0,2483.9,13.16]
[1748162374668,0.1,2484.5,2483.9,13.16]
[1748162374860,0.1,2484.5,2484.1,3.73489371]
[1748162376670,0.1,2484.6,2484.3,3.73489371]
[1748162376840,0.1,2484.6,2484.4,0.37348937]
[1748162377041,4.68370817,2484.7,2484.4,0.37348937]
[1748162377437,4.68370817,2484.7,2484.5,4.476]
[1748162377765,0.7992,2484.6,2484.5,4.476]
[1748162378159,0.7992,2484.6,2484.0,8.0]
[1748162378366,0.7992,2484.6,2483.9,8.675]
[1748162378561,0.15031577,2484.5,2483.9,8.675]
[1748162378750,0.15031577,2484.5,2484.0,4.476]
[1748162378751,1.67832239,2484.5,2484.0,4.476]
[1748162378949,4.016,2484.4,2484.1,4.476]
[1748162379466,4.016,2484.4,2484.2,4.476]
[1748162384065,0.1,2484.3,2484.2,4.476]
[1748162385342,0.1,2484.3,2483.9,12.40989371]
[1748162385343,0.1,2484.3,2483.9,8.675]
[1748162385548,0.1,2484.3,2484.0,4.476]
[1748162389262,0.1,2484.3,2484.1,4.476]
[1748162389474,0.1,2484.3,2484.2,4.476]
[1748162389875,0.1,2484.4,2484.2,4.476]
[1748162390875,0.1,2484.4,2484.3,4.476]
[1748162391685,0.1,2484.4,2483.9,8.675]
[1748162391874,0.1,2484.4,2484.0,4.476]
[1748162393490,0.1,2484.4,2483.9,8.675]
[1748162393491,0.59402,2484.4,2483.9,8.675]
[1748162393680,0.59402,2484.4,2484.1,4.475]
[1748162394758,0.59402,2484.4,2484.2,4.475]
[1748162394959,0.8209,2484.3,2483.9,8.675]
[1748162395191,0.8209,2484.3,2484.0,4.475]
[1748162395500,1.363992,2484.3,2484.1,4.475]
[1748162395887,0.1,2484.2,2484.1,4.475]
[1748162401672,0.1,2484.4,2484.1,4.475]
[1748162402309,0.57866641,2484.4,2484.1,4.475]
[1748162402908,0.57866641,2484.4,2483.9,8.675]
[1748162403108,0.53774664,2484.3,2484.2,4.467]
[1748162403315,0.91287548,2484.3,2484.2,4.467]
[1748162406213,1.39154189,2484.3,2484.2,4.467]
[1748162407624,1.49154189,2484.3,2484.2,4.467]
[1748162408218,1.49154189,2484.3,2483.9,8.675]
[1748162408445,0.7549,2484.2,2484.0,4.467]
[1748162408727,0.22464419,2484.1,2484.0,4.467]
[1748162408925,0.69977303,2484.1,2484.0,4.467]
[1748162409319,4.71577303,2484.1,2483.9,8.675]
[1748162409484,0.7549,2484.0,2483.9,8.675]
[1748162409826,1.23356641,2484.0,2483.9,13.142]
[1748162409979,2.91717956,2484.0,2483.9,13.142]
[1748162410586,3.2923084,2484.0,2483.9,13.142]
[1748162412724,2.81364199,2484.0,2483.9,13.142]
[1748162413597,2.91364199,2484.0,2483.9,13.142]
[1748162413811,0.47512884,2484.0,2483.9,13.142]
[1748162414024,4.49112884,2484.0,2483.9,13.142]
[1748162414327,4.116,2484.0,2483.9,13.142]
[1748162415223,4.116,2484.0,2483.9,8.675]
[1748162415430,4.116,2484.0,2483.9,13.143]
[1748162417037,5.60046664,2484.0,2483.9,8.675]
[1748162417239,6.35536664,2484.0,2483.9,13.143]
[1748162417737,4.116,2484.0,2483.9,13.143]
[1748162418730,0.1,2484.0,2483.9,13.143]
[1748162418936,4.116,2484.0,2483.9,13.143]
[1748162419234,0.1,2484.0,2483.9,13.143]
[1748162419524,4.016,2484.0,2483.9,13.143]
[1748162421344,4.4276,2484.0,2483.9,13.143]
[1748162422025,4.016,2484.0,2483.9,13.143]
[1748162424633,4.016,2484.0,2483.9,8.675]
[1748162424933,4.016,2484.0,2483.9,13.143]
[1748162425233,4.7696,2484.0,2483.9,13.143]
[1748162425438,4.8696,2484.0,2483.9,13.143]
[1748162425743,6.42942664,2484.0,2483.9,13.143]
[1748162426117,6.90809305,2484.0,2483.9,13.143]
[1748162426739,7.28313703,2484.0,2483.9,8.675]
[1748162426943,7.28313703,2484.0,2483.9,13.143]
[1748162427324,6.80447062,2484.0,2483.9,13.143]
[1748162429632,7.28406757,2484.0,2483.9,13.143]
[1748162437316,6.80447062,2484.0,2483.9,13.143]
[1748162439919,6.80547062,2484.0,2483.9,13.143]
[1748162443560,6.80547062,2484.0,2483.9,13.135]
[1748162444860,6.80547062,2484.0,2483.9,8.675]
[1748162445064,6.80547062,2484.0,2483.9,13.135]
[1748162445625,7.35547062,2484.0,2483.9,13.135]
[1748162445837,17.60547062,2484.0,2483.9,13.135]
[1748162446764,18.24226265,2484.0,2483.9,13.135]
[1748162449164,18.2416408,2484.0,2483.9,13.135]
[1748162449933,13.6746408,2484.0,2483.9,13.135]
[1748162450264,17.6916408,2484.0,2483.9,13.135]
[1748162451066,17.05484877,2484.0,2483.9,13.135]
[1748162452279,17.6916408,2484.0,2483.9,13.135]
[1748162453468,11.36121416,2484.0,2483.9,13.135]
[1748162453672,15.37821416,2484.0,2483.9,13.135]
[1748162454046,11.36121416,2484.0,2483.9,13.135]
[1748162454235,15.37821416,2484.0,2483.9,13.135]
[1748162454571,14.74142213,2484.0,2483.9,13.135]
[1748162454770,4.49142213,2484.0,2483.9,13.135]
[1748162458246,4.117,2484.0,2483.9,13.135]
[1748162458770,0.1,2484.0,2483.9,16.86989371]
[1748162458971,4.117,2484.0,2483.9,16.86989371]
[1748162459274,4.117,2484.0,2483.9,13.135]
[1748162459974,4.117,2484.0,2483.9,8.675]
[1748162460277,4.117,2484.0,2483.9,13.135]
[1748162460662,4.117,2484.0,2483.9,8.675]
[1748162460837,4.117,2484.0,2483.9,13.135]
[1748162460838,5.36005286,2484.0,2483.9,13.135]
[1748162461792,5.91005286,2484.0,2483.9,13.135]
[1748162461958,6.54684489,2484.0,2483.9,13.135]
[1748162466783,16.79684489,2484.0,2483.9,13.135]
[1748162468996,12.22984489,2484.0,2483.9,13.135]
[1748162469202,15.46344489,2484.0,2483.9,13.135]
[1748162469374,11.44644489,2484.0,2483.9,13.135]
[1748162469575,15.46344489,2484.0,2483.9,13.135]
[1748162470053,11.44644489,2484.0,2483.9,13.135]
[1748162470259,15.46344489,2484.0,2483.9,13.135]
[1748162470571,14.82665286,2484.0,2483.9,13.135]
[1748162471902,10.80965286,2484.0,2483.9,13.135]
[1748162472199,14.82665286,2484.0,2483.9,13.135]
[1748162474602,15.46344489,2484.0,2483.9,13.135]
[1748162475909,11.44644489,2484.0,2483.9,13.135]
[1748162476079,15.46344489,2484.0,2483.9,13.135]
[1748162477115,14.82665286,2484.0,2483.9,13.135]
[1748162477711,10.35,2484.0,2483.9,13.135]
[1748162478207,14.367,2484.0,2483.9,13.135]
[1748162478513,4.117,2484.0,2483.9,13.135]
[1748162483328,0.1,2484.0,2483.9,13.135]
[1748162483524,4.116,2484.0,2483.9,13.135]
[1748162488824,4.116,2484.0,2483.9,8.675]
[1748162489009,4.116,2484.0,2483.9,13.125]
[1748162489212,4.116,2484.0,2483.9,8.675]
[1748162489828,4.116,2484.0,2483.9,13.125]
[1748162498040,0.1,2484.0,2483.9,13.125]
[1748162498334,4.016,2484.0,2483.9,4.439]
[1748162498542,4.55110352,2484.0,2483.9,4.439]
[1748162502927,4.55110352,2484.0,2483.8,8.676]
[1748162503135,1.01443872,2484.0,2483.9,4.439]
[1748162503339,4.4953352,2484.0,2483.9,4.439]
[1748162504335,4.016,2484.0,2483.9,4.439]
[1748162504531,4.016,2484.0,2483.8,8.676]
[1748162504847,4.016,2484.0,2483.9,4.439]
[1748162505271,0.5793352,2484.1,2483.9,4.439]
[1748162505473,4.5963352,2484.1,2483.9,8.17389371]